bitfinex-derivatives/quotes_BTCF0:USTF0_20241218
["timestamp","ask_amount","ask_price","bid_price","bid_amount"]
[1734557843452,0.049266,101580.0,101570.0,0.049268]
[1734557844047,0.410066,101580.0,101570.0,0.049268]
[1734557844242,0.049268,101570.0,101560.0,0.049272]
[1734557844448,0.049268,101570.0,101560.0,0.05766101]
[1734557844949,0.410064,101580.0,101570.0,0.049268]
[1734557845154,0.049264,101580.0,101570.0,0.05765701]
[1734557845355,0.59220457,101590.0,101570.0,0.41845701]
[1734557845550,0.14706922,101580.0,101570.0,0.41845701]
[1734557846054,0.14706922,101580.0,101570.0,0.46702508]
[1734557846765,0.14854652,101590.0,101580.0,0.049263]
[1734557846948,0.14854652,101590.0,101580.0,0.73905201]
[1734557847355,0.1756359,101590.0,101580.0,0.38460492]
[1734557847755,0.049258,101590.0,101580.0,0.74540492]
[1734557848254,0.149255,101600.0,101580.0,0.79951652]
[1734557848461,0.149255,101600.0,101580.0,0.78759758]
[1734557848850,0.149255,101600.0,101590.0,0.049258]
[1734557849050,0.149255,101600.0,101590.0,0.05764701]
[1734557849559,0.1,101600.0,101590.0,0.42223781]
[1734557849952,0.1,101600.0,101590.0,0.56237097]
[1734557850249,0.1,101600.0,101590.0,0.47077372]
[1734557850858,0.1,101600.0,101590.0,0.42223781]
[1734557851553,0.1,101600.0,101590.0,0.4707319]
[1734557851755,0.1,101600.0,101590.0,0.42223781]
[1734557852057,0.1,101600.0,101590.0,0.47073113]
[1734557852248,0.1,101600.0,101590.0,0.42223781]
[1734557852455,0.1,101600.0,101590.0,0.48037283]
[1734557852654,0.1,101600.0,101590.0,0.43189716]
[1734557853458,0.149253,101600.0,101590.0,0.43189716]
[1734557854049,0.1,101600.0,101590.0,0.43189716]
[1734557854255,0.0005,101620.0,101590.0,0.92046579]
[1734557854454,0.049747,101620.0,101610.0,0.410049]
[1734557854655,0.049747,101620.0,101610.0,0.22264483]
[1734557855165,0.049747,101620.0,101610.0,0.58344018]
[1734557855365,0.0005,101620.0,101610.0,0.74024018]
[1734557856266,0.22001798,101630.0,101620.0,0.049244]
[1734557856455,0.22001798,101630.0,101620.0,0.42243518]
[1734557856660,0.22001798,101630.0,101620.0,0.01239118]
[1734557857061,0.01147698,101630.0,101620.0,0.56256834]
[1734557857269,0.01197698,101630.0,101620.0,0.56256834]
[1734557857460,0.0105,101630.0,101620.0,0.56256834]
[1734557857764,0.0105,101630.0,101620.0,0.42243518]
[1734557858071,0.0105,101630.0,101620.0,0.42242322]
[1734557858370,0.01,101630.0,101620.0,0.42242322]
[1734557859365,0.0105,101630.0,101620.0,0.56255638]
[1734557860459,0.0105,101630.0,101620.0,0.86255638]
[1734557860661,0.212327,101660.0,101650.0,0.049229]
[1734557860861,0.22145656,101660.0,101650.0,0.06160822]
[1734557861663,0.00912956,101660.0,101650.0,0.06160822]
[1734557861864,0.04922,101670.0,101660.0,0.049224]
[1734557862165,0.85015316,101670.0,101660.0,0.01217043]
[1734557862369,0.049234,101640.0,101630.0,0.00147587]
[1734557862557,0.410034,101640.0,101630.0,0.00147587]
[1734557862760,0.732834,101640.0,101630.0,0.00147587]
[1734557863268,0.733334,101640.0,101630.0,0.00147587]
[1734557863461,0.733334,101640.0,101630.0,0.00447587]
[1734557863863,0.580134,101640.0,101630.0,0.00447587]
[1734557864270,0.579634,101640.0,101630.0,0.00447587]
[1734557864666,0.5304,101640.0,101620.0,0.20054867]
[1734557864869,0.049239,101630.0,101620.0,0.20054867]
[1734557865269,0.579635,101640.0,101630.0,0.049239]
[1734557865464,0.410533,101650.0,101630.0,0.410039]
[1734557865775,0.18501978,101670.0,101630.0,0.710039]
[1734557865959,0.53636044,101680.0,101660.0,0.50093316]
[1734557866164,0.22477744,101680.0,101670.0,0.049219]
[1734557866657,0.17556044,101680.0,101660.0,0.410024]
[1734557866861,0.17556044,101680.0,101660.0,0.410021]
[1734557867058,0.22477644,101680.0,101670.0,0.410019]
[1734557867364,0.05857802,101680.0,101670.0,0.41632099]
[1734557867563,0.00936202,101680.0,101670.0,0.41632099]
[1734557867763,0.212612,101690.0,101680.0,0.049215]
[1734557867959,0.212612,101690.0,101680.0,0.05551699]
[1734557868267,0.227372,101690.0,101680.0,0.05551699]
[1734557868975,0.001,101690.0,101680.0,0.41631699]
[1734557869174,0.05021,101690.0,101680.0,0.00630199]
[1734557871478,0.05021,101690.0,101680.0,0.41631699]
[1734557872480,0.001,101690.0,101680.0,0.41631699]
[1734557872975,0.05021,101690.0,101680.0,0.41631699]
[1734557873278,0.05021,101690.0,101680.0,0.00630199]
[1734557873975,0.85114316,101690.0,101680.0,0.00630199]
[1734557874166,0.049224,101660.0,101650.0,0.3608]
[1734557874366,0.5186,101680.0,101660.0,0.049224]
[1734557874562,0.049718,101680.0,101660.0,0.41401257]
[1734557875169,0.04922,101670.0,101660.0,0.41401257]
[1734557876171,0.13795193,101680.0,101660.0,0.41401257]
[1734557876374,0.18717093,101680.0,101660.0,0.41401257]
[1734557876683,0.25488903,101680.0,101670.0,0.04922]
[1734557876886,0.25488903,101680.0,101670.0,0.41400857]
[1734557877179,0.25488903,101680.0,101670.0,0.00398857]
[1734557877572,0.61468903,101680.0,101670.0,0.00398857]
[1734557877776,0.77418903,101680.0,101670.0,0.00398857]
[1734557877978,0.93598903,101680.0,101670.0,0.00398857]
[1734557878475,0.77418903,101680.0,101670.0,0.00398857]
[1734557878878,0.71687654,101680.0,101670.0,0.00398857]
[1734557879075,0.049224,101660.0,101650.0,0.3608]
[1734557879671,0.049229,101650.0,101640.0,0.36227564]
[1734557879865,0.049229,101650.0,101640.0,0.3608]
[1734557881272,0.52713666,101660.0,101640.0,0.410034]
[1734557881473,0.19558554,101660.0,101650.0,0.049229]
[1734557882070,0.19558554,101660.0,101640.0,0.416032]
[1734557882276,0.049229,101650.0,101640.0,0.416032]
[1734557882877,0.1673299,101660.0,101640.0,0.410031]
[1734557883077,0.1181049,101660.0,101650.0,0.3608]
[1734557883377,0.049229,101650.0,101640.0,0.410033]
[1734557883579,0.049229,101650.0,101640.0,0.3608]
[1734557883580,0.13716658,101650.0,101640.0,0.3608]
[1734557884380,0.08793758,101650.0,101640.0,0.55016716]
[1734557884580,0.14735954,101650.0,101640.0,0.56848744]
[1734557884878,0.17556044,101660.0,101640.0,0.56848744]
[1734557885082,0.17556044,101660.0,101650.0,0.86806216]
[1734557885282,0.17556044,101660.0,101650.0,0.73433034]
[1734557885484,0.17556044,101660.0,101650.0,0.727929]
[1734557885676,0.16658171,101670.0,101650.0,0.727929]
[1734557886283,0.001,101660.0,101650.0,0.727929]
[1734557886783,0.11836171,101660.0,101650.0,0.8799811]
[1734557887169,0.22625274,101680.0,101650.0,0.86806216]
[1734557887376,0.17315202,101680.0,101670.0,0.41002]
[1734557887981,0.60262501,101690.0,101670.0,0.41002]
[1734557888179,0.049215,101680.0,101670.0,0.3608]
[1734557888481,0.049215,101680.0,101670.0,0.41002]
[1734557888874,0.050215,101680.0,101670.0,0.41002]
[1734557889278,0.050215,101680.0,101670.0,0.3608]
[1734557889871,0.050215,101680.0,101670.0,0.41002]
[1734557890075,0.001,101680.0,101670.0,0.41002]
[1734557890981,0.001,101680.0,101670.0,0.91095316]
[1734557891181,0.001,101680.0,101670.0,0.91482982]
[1734557891585,0.001,101680.0,101670.0,0.77469666]
[1734557892085,0.001,101680.0,101670.0,0.78407405]
[1734557892283,0.001,101680.0,101670.0,0.93612615]
[1734557892583,0.1,101700.0,101690.0,0.04921]
[1734557892784,0.1,101700.0,101690.0,0.77468666]
[1734557892981,0.1,101700.0,101690.0,0.93767426]
[1734557893488,0.1,101700.0,101690.0,0.9440174]
[1734557893783,0.1,101700.0,101690.0,0.96668974]
[1734557893983,0.1,101700.0,101690.0,0.96678937]
[1734557894183,0.1,101700.0,101690.0,1.10692253]
[1734557894379,0.1,101700.0,101690.0,1.11884147]
[1734557894583,0.6709,101720.0,101710.0,0.0492]
[1734557894584,0.0005,101720.0,101710.0,0.0492]
[1734557894785,0.0005,101720.0,101710.0,0.43663624]
[1734557894973,0.0005,101720.0,101710.0,0.2159694]
[1734557895175,0.0005,101720.0,101710.0,0.59133624]
[1734557895373,0.00920621,101730.0,101710.0,0.23053624]
[1734557895573,0.3608,101720.0,101710.0,0.02663624]
[1734557895784,0.409995,101720.0,101710.0,0.02663624]
[1734557895978,0.3608,101720.0,101710.0,0.02663624]
[1734557896385,0.0005,101720.0,101710.0,0.07583624]
[1734557896584,0.0005,101720.0,101710.0,0.42268403]
[1734557896774,0.0005,101720.0,101710.0,0.06149495]
[1734557896975,0.0005,101720.0,101710.0,0.20162811]
[1734557897285,0.02897005,101730.0,101710.0,0.42229495]
[1734557897479,0.02897005,101730.0,101720.0,0.049195]
[1734557897679,0.02897005,101730.0,101720.0,0.06148995]
[1734557898082,0.07816105,101730.0,101720.0,0.06148995]
[1734557898286,0.43946105,101730.0,101720.0,0.01229495]
[1734557899089,0.73946105,101730.0,101720.0,0.01229495]
[1734557899293,0.07866105,101730.0,101720.0,0.0039639]
[1734557899488,0.43946105,101730.0,101720.0,0.01228587]
[1734557899688,0.07866105,101730.0,101720.0,0.01228587]
[1734557899889,0.43946105,101730.0,101720.0,0.01228587]
[1734557900277,0.07866105,101730.0,101720.0,0.01228587]
[1734557900588,0.07866105,101730.0,101720.0,0.42228087]
[1734557901683,0.049731,101730.0,101720.0,0.42228087]
[1734557902089,0.18986416,101730.0,101720.0,0.01228587]
[1734557902386,0.18986416,101730.0,101710.0,0.409998]
[1734557902387,0.55066416,101730.0,101710.0,0.00926421]
[1734557902590,0.049195,101720.0,101710.0,0.37298985]
[1734557902980,0.049195,101720.0,101710.0,0.42218985]
[1734557903986,0.049195,101720.0,101710.0,0.37298985]
[1734557904193,0.18932816,101720.0,101710.0,0.37298985]
[1734557904489,0.55012816,101720.0,101710.0,0.01218985]
[1734557904693,0.70732816,101720.0,101710.0,0.01218985]
[1734557905288,1.00732816,101720.0,101710.0,0.01218738]
[1734557906089,0.70732816,101720.0,101710.0,0.01218738]
[1734557906486,1.00732816,101720.0,101710.0,0.01218738]
[1734557906684,0.70732816,101720.0,101710.0,0.01218738]
[1734557906885,0.567195,101720.0,101710.0,0.01218738]
[1734557907082,0.206395,101720.0,101710.0,0.01218738]
[1734557907286,0.567195,101720.0,101710.0,0.01218738]
[1734557907692,0.049195,101720.0,101710.0,0.37298738]
[1734557907993,0.049195,101720.0,101710.0,0.42218738]
[1734557908189,0.049232,101730.0,101710.0,0.57719324]
[1734557908491,0.00054,101730.0,101720.0,0.409995]
[1734557908678,0.00054,101730.0,101720.0,0.42842835]
[1734557908879,0.049731,101730.0,101720.0,0.42842835]
[1734557909279,0.00054,101730.0,101720.0,0.42842835]
[1734557909490,4e-05,101730.0,101720.0,0.42842835]
[1734557909789,0.55016416,101730.0,101720.0,0.01013008]
[1734557910181,0.410031,101730.0,101720.0,0.01013008]
[1734557910489,0.85016416,101730.0,101720.0,0.01013008]
[1734557910694,0.85016416,101730.0,101720.0,0.0184275]
[1734557910888,0.85016416,101730.0,101720.0,0.01845465]
[1734557911286,0.049205,101710.0,101690.0,0.41148406]
[1734557911988,0.04876173,101710.0,101690.0,0.41148406]
[1734557912684,0.04876173,101710.0,101700.0,0.3608]
[1734557912994,0.0492,101710.0,101700.0,0.410003]
[1734557913189,0.5171,101720.0,101700.0,0.410003]
[1734557913190,0.1563,101720.0,101700.0,0.410003]
[1734557913385,0.2055,101720.0,101700.0,0.459205]
[1734557913598,0.2055,101720.0,101700.0,0.410002]
[1734557915592,0.049232,101730.0,101710.0,0.409997]
[1734557915801,0.049232,101730.0,101720.0,0.3608]
[1734557916292,4e-05,101730.0,101720.0,0.3608]
[1734557916493,4e-05,101730.0,101720.0,0.55012816]
[1734557916694,0.14696175,101740.0,101730.0,0.049191]
[1734557916900,0.14696175,101740.0,101730.0,0.409991]
[1734557917898,0.00017,101740.0,101730.0,0.409991]
[1734557918301,0.049356,101740.0,101720.0,0.3608]
[1734557918495,0.049356,101740.0,101730.0,0.409991]
[1734557918496,0.00017,101740.0,101730.0,0.409991]
[1734557918894,0.049356,101740.0,101730.0,0.409991]
[1734557919293,0.00017,101740.0,101730.0,0.409991]
[1734557919898,0.00017,101740.0,101730.0,0.558191]
[1734557922001,0.18948916,101740.0,101730.0,0.23509088]
[1734557922191,0.55028916,101740.0,101730.0,0.23509088]
[1734557922396,0.203356,101740.0,101730.0,0.23509088]
[1734557922601,0.564156,101740.0,101730.0,0.23509088]
[1734557922993,0.70428916,101740.0,101710.0,1.0120993]
[1734557923192,0.568895,101730.0,101710.0,0.65828839]
[1734557923399,0.049195,101720.0,101710.0,0.65828839]
[1734557924104,0.049195,101720.0,101710.0,0.29748839]
[1734557924305,0.049195,101720.0,101710.0,0.00688809]
[1734557926209,0.050195,101720.0,101710.0,0.01088809]
[1734557926800,0.050195,101720.0,101710.0,0.06008809]
[1734557927299,0.050195,101720.0,101710.0,0.01088809]
[1734557928203,0.064955,101720.0,101710.0,0.01088809]
[1734557928399,0.050195,101720.0,101710.0,0.01088809]
[1734557928602,0.07426434,101720.0,101710.0,0.01088809]
[1734557928794,0.05950434,101720.0,101710.0,0.01088809]
[1734557930909,0.05950434,101720.0,101710.0,0.42088809]
[1734557930910,0.001,101720.0,101710.0,0.42088809]
[1734557931409,0.001,101720.0,101710.0,0.56918809]
[1734557933802,0.001,101720.0,101710.0,0.57562143]
[1734557934510,0.7432198,101740.0,101710.0,0.71708067]
[1734557934705,0.7432198,101740.0,101720.0,0.707792]
[1734557934906,0.049191,101730.0,101720.0,0.71811343]
[1734557935107,0.14207727,101730.0,101720.0,0.01032143]
[1734557935802,0.50287727,101730.0,101720.0,0.01032143]
[1734557936205,0.14207727,101730.0,101720.0,0.01332143]
[1734557936805,0.049191,101730.0,101720.0,0.00690443]
[1734557937103,0.049191,101730.0,101720.0,0.36770443]
[1734557937708,0.049191,101730.0,101720.0,0.41689943]
[1734557938809,0.14207727,101730.0,101720.0,0.00690443]
[1734557939110,0.50287727,101730.0,101720.0,0.00690443]
[1734557939908,0.14207727,101730.0,101720.0,0.00690443]
[1734557940302,0.59576354,101730.0,101720.0,0.00690443]
[1734557940509,0.049204,101710.0,101690.0,0.71552524]
[1734557940808,0.049204,101710.0,101690.0,0.75220247]
[1734557941010,0.201404,101710.0,101690.0,0.75220247]
[1734557941313,0.29429027,101710.0,101690.0,0.75220247]
[1734557941714,0.049205,101700.0,101690.0,0.7616242]
[1734557941902,0.049205,101700.0,101690.0,0.7706242]
[1734557942304,0.049205,101700.0,101690.0,0.71199647]
[1734557942518,0.049205,101700.0,101690.0,0.6634003]
[1734557943017,0.050205,101700.0,101690.0,0.6634003]
[1734557943311,0.55038984,101700.0,101690.0,0.3026003]
[1734557943513,0.55038984,101700.0,101680.0,0.35098869]
[1734557943514,0.04921,101690.0,101680.0,0.35098869]
[1734557943815,0.04921,101690.0,101680.0,0.00639714]
[1734557943816,0.54939484,101690.0,101680.0,0.00639714]
[1734557944021,1.02335484,101690.0,101680.0,0.00639714]
[1734557944208,0.049215,101680.0,101670.0,0.35088401]
[1734557944513,0.54939984,101680.0,101670.0,0.35138401]
[1734557944904,0.91279984,101680.0,101670.0,0.35138401]
[1734557945110,0.773415,101680.0,101670.0,0.0005]
[1734557945312,0.412615,101680.0,101670.0,0.0005]
[1734557945512,0.91279984,101680.0,101650.0,0.01064747]
[1734557945815,0.049224,101660.0,101650.0,0.00106]
[1734557946016,0.049224,101660.0,101650.0,0.3608]
[1734557946215,0.049224,101660.0,101640.0,0.75731219]
[1734557946714,0.0493433,101650.0,101640.0,0.3107]
[1734557946916,0.049234,101640.0,101630.0,0.00156134]
[1734557947722,0.049234,101640.0,101630.0,0.01108295]
[1734557948015,0.2021443,101650.0,101630.0,0.42112095]
[1734557948215,0.2021443,101650.0,101640.0,0.009]
[1734557948608,0.2169043,101650.0,101640.0,0.009]
[1734557948815,0.2169043,101650.0,101630.0,0.02008295]
[1734557948816,0.050234,101640.0,101630.0,0.02008295]
[1734557949217,0.050234,101640.0,101630.0,0.01056134]
[1734557949521,0.84941884,101640.0,101630.0,8.548e-05]
[1734557949712,0.99521884,101640.0,101630.0,8.548e-05]
[1734557950109,0.049239,101630.0,101620.0,0.00082]
[1734557950311,0.049247,101620.0,101600.0,0.6577018]
[1734557950511,0.049248,101610.0,101600.0,0.6577018]
[1734557950818,0.049248,101610.0,101600.0,0.4608]
[1734557951020,0.54943284,101610.0,101600.0,0.1]
[1734557951318,0.5495153,101610.0,101600.0,0.1]
[1734557951515,0.04933046,101610.0,101600.0,0.1]
[1734557951713,0.05033046,101610.0,101600.0,0.4678]
[1734557951914,0.05033046,101610.0,101600.0,0.107]
[1734557952119,0.41113046,101610.0,101600.0,0.107]
[1734557952514,0.41113046,101610.0,101600.0,0.11091343]
[1734557952716,0.5505153,101610.0,101600.0,0.11091343]
[1734557953112,0.41113046,101610.0,101600.0,0.11091343]
[1734557953508,0.5505153,101610.0,101600.0,0.11091343]
[1734557953823,0.049258,101590.0,101570.0,0.36088606]
[1734557954120,0.049263,101580.0,101570.0,0.36088606]
[1734557954516,1.01718484,101600.0,101570.0,0.37485642]
[1734557954517,0.13938484,101590.0,101570.0,0.37485642]
[1734557954714,0.54944484,101590.0,101570.0,0.01405642]
[1734557954921,0.41006,101590.0,101570.0,0.01405642]
[1734557955117,0.04926,101590.0,101570.0,0.01405642]
[1734557955422,0.001,101580.0,101570.0,0.38185642]
[1734557955622,0.001,101580.0,101570.0,0.02105642]
[1734557955824,0.001,101580.0,101570.0,0.0272571]
[1734557956122,0.04926,101590.0,101570.0,0.41935374]
[1734557956323,1.06643984,101600.0,101580.0,0.3608]
[1734557956524,0.412855,101600.0,101580.0,0.36700068]
[1734557956723,0.773655,101600.0,101580.0,0.36700068]
[1734557956921,0.3636,101600.0,101580.0,0.41626068]
[1734557957224,0.4212224,101610.0,101590.0,0.049258]
[1734557957426,0.4212224,101610.0,101590.0,0.36700068]
[1734557957615,0.049253,101600.0,101590.0,0.00620068]
[1734557957817,0.18863784,101600.0,101590.0,0.00620068]
[1734557958126,0.55043784,101600.0,101590.0,0.00620068]
[1734557958321,0.098524,101590.0,101570.0,0.50918606]
[1734557958516,0.50118484,101600.0,101570.0,0.50918606]
[1734557958517,0.50118484,101600.0,101570.0,0.51539032]
[1734557958727,0.049259,101590.0,101580.0,0.3608]
[1734557958927,0.049259,101590.0,101580.0,0.00620426]
[1734557959128,0.050255,101600.0,101580.0,0.36700426]
[1734557959426,0.049255,101600.0,101580.0,0.00620426]
[1734557959626,0.049255,101600.0,101590.0,0.3608]
[1734557959828,0.18863784,101600.0,101590.0,0.00620426]
[1734557960133,0.54943784,101600.0,101590.0,0.00620426]
[1734557960327,0.7849444,101610.0,101590.0,0.00620426]
[1734557960621,0.7849444,101610.0,101590.0,0.36700426]
[1734557960820,0.4241444,101610.0,101590.0,0.049257]
[1734557961017,0.049253,101600.0,101580.0,0.410061]
[1734557961324,0.87507724,101610.0,101580.0,0.410061]
[1734557961325,0.7849414,101610.0,101590.0,0.3608]
[1734557961525,0.7869414,101610.0,101590.0,0.3608]
[1734557961723,0.049253,101600.0,101590.0,0.3608]
[1734557961927,0.02001154,101600.0,101590.0,0.3608]
[1734557962128,0.07126454,101600.0,101590.0,0.3608]
[1734557962722,0.07126454,101600.0,101580.0,0.41952235]
[1734557963137,0.52219638,101600.0,101580.0,0.3608]
[1734557963325,0.049258,101590.0,101580.0,0.3608]
[1734557963626,0.57144938,101600.0,101570.0,0.50968606]
[1734557963831,0.04926,101590.0,101570.0,0.55895306]
[1734557964018,0.04926,101590.0,101570.0,0.19815306]
[1734557964224,0.38081154,101600.0,101580.0,0.410059]
[1734557964225,0.06926654,101600.0,101580.0,0.410059]
[1734557964427,0.43006654,101600.0,101580.0,0.049259]
[1734557964629,0.02001154,101600.0,101580.0,0.410059]
[1734557964931,0.001,101600.0,101590.0,0.410058]
[1734557965132,0.7849424,101610.0,101590.0,0.556158]
[1734557965329,0.001,101600.0,101590.0,0.556158]
[1734557965828,0.001,101600.0,101590.0,0.55998994]
[1734557967429,0.001,101600.0,101590.0,0.55998694]
[1734557967623,0.001,101600.0,101590.0,0.99937178]
[1734557968532,0.001,101600.0,101590.0,0.99938952]
[1734557968738,8.246e-05,101610.0,101600.0,0.049253]
[1734557969038,8.246e-05,101610.0,101600.0,0.55328752]
[1734557969336,8.246e-05,101610.0,101600.0,0.41390268]
[1734557969541,0.049245,101620.0,101610.0,0.049248]
[1734557969737,0.049245,101620.0,101610.0,0.41389768]
[1734557969932,0.049245,101620.0,101610.0,0.00384968]
[1734557970629,0.41017295,101620.0,101610.0,0.00384968]
[1734557970837,0.04937295,101620.0,101610.0,0.00384968]
[1734557971339,0.05037195,101620.0,101610.0,0.00384968]
[1734557972338,0.05037195,101620.0,101600.0,0.41005]
[1734557972339,0.05037195,101620.0,101600.0,0.45855013]
[1734557972640,0.05037195,101620.0,101600.0,0.46240674]
[1734557973540,0.05037195,101620.0,101610.0,0.3608]
[1734557973734,0.1662794,101620.0,101610.0,0.37657555]
[1734557973935,0.1672794,101620.0,101610.0,0.37657555]
[1734557974352,0.1180354,101620.0,101610.0,0.06502872]
[1734557974738,0.1180354,101620.0,101610.0,0.46614355]
[1734557975048,0.26459021,101620.0,101610.0,0.45035983]
[1734557975338,0.26459021,101620.0,101610.0,0.59885983]
[1734557975546,0.02619021,101620.0,101610.0,0.59885983]
[1734557975737,0.02619021,101620.0,101610.0,0.45035983]
[1734557975936,0.22471346,101630.0,101610.0,0.45035983]
[1734557976241,0.04924,101620.0,101610.0,0.42576248]
[1734557976441,0.04924,101620.0,101610.0,0.46607731]
[1734557976837,0.04924,101620.0,101610.0,0.00579854]
[1734557977241,0.41004,101620.0,101610.0,0.04611337]
[1734557977433,0.84942484,101620.0,101610.0,5.4e-07]
[1734557977647,0.04925,101600.0,101580.0,0.60735906]
[1734557977947,0.049255,101590.0,101580.0,0.63687628]
[1734557978147,0.049255,101590.0,101580.0,0.40172194]
[1734557979540,0.54943984,101590.0,101580.0,0.04092194]
[1734557979745,0.50018484,101590.0,101580.0,0.05489496]
[1734557979947,0.410055,101590.0,101580.0,0.04092194]
[1734557980754,0.049255,101590.0,101580.0,0.04192194]
[1734557980950,0.049255,101590.0,101580.0,0.001]
[1734557981136,0.83788033,101600.0,101580.0,0.001]
[1734557981342,0.17578033,101590.0,101580.0,0.411057]
[1734557981649,0.17578033,101590.0,101580.0,0.45132803]
[1734557981855,0.17678033,101590.0,101580.0,0.45032803]
[1734557982848,0.001,101590.0,101580.0,0.410057]
[1734557983349,0.15526345,101600.0,101580.0,0.410057]
[1734557983648,0.20451345,101600.0,101590.0,0.3608]
[1734557984350,0.049254,101590.0,101580.0,0.3608]
[1734557984543,0.18863884,101590.0,101580.0,0.3608]
[1734557984739,0.200254,101590.0,101580.0,0.3608]
[1734557984942,0.561054,101590.0,101570.0,0.36236253]
[1734557985238,0.049259,101580.0,101570.0,0.36236253]
[1734557985651,0.049259,101580.0,101570.0,0.40263356]
[1734557986045,0.5118,101590.0,101570.0,0.36236253]
[1734557986242,0.561056,101590.0,101570.0,0.36236253]
[1734557986447,0.562056,101590.0,101570.0,0.36236253]
[1734557986750,0.049259,101580.0,101570.0,0.36236253]
[1734557987054,0.049259,101580.0,101570.0,0.40363356]
[1734557987643,0.54944384,101580.0,101570.0,0.04035709]
[1734557988046,0.54944384,101580.0,101570.0,8.606e-05]
[1734557988250,0.56424384,101580.0,101570.0,8.606e-05]
[1734557989145,0.56424384,101580.0,101570.0,0.00108606]
[1734557989346,0.049264,101570.0,101560.0,0.14439235]
[1734557989652,0.049268,101560.0,101550.0,0.17088889]
[1734557989849,0.049268,101560.0,101530.0,0.3622772]
[1734557989850,0.049288,101520.0,101510.0,0.87856915]
[1734557990038,0.410088,101520.0,101510.0,0.87856915]
[1734557990247,0.3608,101520.0,101510.0,0.93486132]
[1734557990441,0.56437826,101520.0,101510.0,0.89999343]
[1734557990653,0.86437826,101520.0,101510.0,0.4671771]
[1734557990947,0.56537826,101520.0,101510.0,0.36115365]
[1734557991139,0.56537826,101520.0,101510.0,0.31893452]
[1734557991748,0.86537826,101520.0,101510.0,0.31893452]
[1734557991946,1.0047631,101520.0,101510.0,0.001]
[1734557992138,0.049297,101500.0,101490.0,1.31800426]
[1734557992344,0.91038406,101500.0,101490.0,1.13981292]
[1734557992542,1.21038406,101500.0,101490.0,1.07116486]
[1734557992750,0.049302,101490.0,101480.0,0.58851326]
[1734557993055,1.21344018,101490.0,101480.0,0.58851326]
[1734557993354,0.91344018,101490.0,101480.0,0.58851326]
[1734557993551,0.049307,101480.0,101470.0,0.01010031]
[1734557993750,0.54949184,101480.0,101470.0,0.01010031]
[1734557994748,0.98887668,101480.0,101470.0,0.01010031]
[1734557994950,0.98887668,101480.0,101470.0,1e-08]
[1734557995147,0.049322,101450.0,101440.0,0.5139]
[1734557995345,0.54950684,101450.0,101440.0,0.1531]
[1734557995856,0.52730658,101450.0,101440.0,0.02285907]
[1734557996047,0.38792174,101450.0,101440.0,0.02285907]
[1734557996242,7.196e-05,101450.0,101440.0,0.38365907]
[1734557996551,0.00107196,101450.0,101440.0,0.57237091]
[1734557996747,0.424908,101480.0,101440.0,0.410127]
[1734557996948,0.43451097,101480.0,101450.0,0.3608]
[1734557997147,0.00960297,101480.0,101460.0,0.410116]
[1734557997342,0.36388,101490.0,101460.0,0.560916]
[1734557997545,0.36388,101490.0,101470.0,0.3608]
[1734557997751,0.36388,101490.0,101480.0,0.3608]
[1734557998049,0.00010188,101490.0,101480.0,0.3608]
[1734557998855,0.00961583,101490.0,101480.0,0.3608]
[1734557999044,0.03417687,101500.0,101480.0,0.3608]
[1734557999244,0.36227877,101510.0,101480.0,0.3608]
[1734557999245,0.00147877,101510.0,101490.0,0.410101]
[1734557999450,0.01627877,101510.0,101500.0,0.0005]
[1734557999655,0.0148,101520.0,101500.0,0.410597]
[1734557999849,0.0148,101520.0,101510.0,0.3608]
[1734558000244,0.0148,101540.0,101510.0,0.54947784]
[1734558000452,0.23115946,101540.0,101530.0,0.3608]
[1734558000652,0.74076166,101540.0,101510.0,0.5138]
[1734558000858,0.5588812,101540.0,101510.0,0.35606462]
[1734558001361,0.41949636,101540.0,101510.0,0.35606462]
[1734558001859,0.049283,101530.0,101510.0,0.30677262]
[1734558002156,0.3608,101520.0,101500.0,0.203197]
[1734558002354,0.3608,101520.0,101510.0,0.1524]
[1734558002552,0.410088,101520.0,101510.0,0.1524]
[1734558002753,0.3608,101530.0,101510.0,0.00451739]
[1734558003059,0.3608,101520.0,101510.0,0.00451739]
[1734558003664,0.3618,101520.0,101510.0,0.00451739]
[1734558004659,0.01084736,101540.0,101510.0,0.88091842]
[1734558004959,0.38016306,101550.0,101530.0,0.049283]
[1734558005162,0.08693455,101540.0,101530.0,0.049283]
[1734558005552,0.38016306,101550.0,101530.0,0.049283]
[1734558005752,0.5998633,101560.0,101540.0,0.049278]
[1734558005753,0.5357943,101560.0,101540.0,0.049278]
[1734558005965,0.54566767,101560.0,101540.0,0.410078]
[1734558006150,0.410077,101550.0,101530.0,0.3608]
[1734558006357,0.3608,101550.0,101530.0,0.26488203]
[1734558006565,0.39208314,101560.0,101540.0,0.049278]
[1734558007061,0.39308314,101560.0,101540.0,0.049278]
[1734558007453,0.39308314,101560.0,101540.0,0.410078]
[1734558008053,0.39308314,101560.0,101540.0,0.558378]
[1734558008461,0.001,101550.0,101540.0,0.197578]
[1734558008655,0.001,101550.0,101540.0,0.343078]
[1734558008856,0.44135114,101560.0,101540.0,0.343078]
[1734558009058,0.44235114,101560.0,101540.0,0.703878]
[1734558009564,0.26487403,101550.0,101540.0,0.002]
[1734558009765,0.62567403,101550.0,101540.0,0.002]
[1734558010065,1.24048103,101550.0,101510.0,0.29527759]
[1734558010259,0.62568903,101520.0,101510.0,0.00147759]
[1734558010464,0.049298,101500.0,101480.0,0.65617716]
[1734558010662,0.410098,101500.0,101480.0,0.65617716]
[1734558010857,0.3608,101510.0,101480.0,0.95617716]
[1734558011055,0.3608,101520.0,101490.0,0.0493]
[1734558011056,0.410089,101520.0,101490.0,0.0493]
[1734558011264,0.3608,101510.0,101490.0,0.0493]
[1734558011456,0.410094,101510.0,101480.0,0.71510284]
[1734558011956,0.4101,101500.0,101480.0,0.65617716]
[1734558012155,0.4101,101500.0,101490.0,0.001]
[1734558012756,0.4101,101500.0,101480.0,0.29637716]
[1734558013065,0.410102,101490.0,101480.0,0.29637716]
[1734558013366,0.3608,101490.0,101480.0,0.00257716]
[1734558014567,0.410102,101490.0,101480.0,0.00257716]
[1734558014864,0.410102,101490.0,101480.0,0.00157716]
[1734558015063,0.62570303,101490.0,101480.0,9.906e-05]
[1734558015469,0.92570303,101490.0,101480.0,9.906e-05]
[1734558015765,0.92670303,101490.0,101480.0,6e-08]